fUSD/lending_fUSD_20241219
["ID","MTS","AMOUNT","RATE_DAILY","PERIOD"]
[346001312,1734618661238,-588.85,0.00023287,4]
[346001313,1734618661247,-406.11,0.00023287,4]
[346001314,1734618661256,-500.0,0.00023287,4]
[346001315,1734618661266,-500.0,0.00023287,4]
[346001316,1734618661275,-500.0,0.00023287,4]
[346001317,1734618661284,-500.0,0.00023287,4]
[346001318,1734618661293,-500.0,0.00023287,4]
[346001319,1734618661302,-500.0,0.00023287,4]
[346001320,1734618661312,-500.0,0.00023287,4]
[346001321,1734618661322,-586.7337639,0.00023287,4]
[346001322,1734618661331,-500.0,0.00023287,4]
[346001323,1734618661341,-500.0,0.00023287,4]
[346001324,1734618661352,-500.0,0.00023287,4]
[346001325,1734618661361,-500.0,0.00023287,4]
[346001326,1734618661371,-500.0,0.00023287,4]
[346001327,1734618661381,-500.0,0.00023287,4]
[346001328,1734618661390,-351.9030351,0.00023287,4]
[346001329,1734618661399,-500.0,0.00023287,4]
[346001330,1734618661409,-500.0,0.00023287,4]
[346001331,1734618661418,-500.0,0.00023287,4]
[346001332,1734618661427,-500.0,0.00023287,4]
[346001333,1734618661437,-500.0,0.00023287,4]
[346001334,1734618661446,-500.0,0.00023287,4]
[346001335,1734618661455,-500.0,0.00023287,4]
[346001336,1734618661464,-500.0,0.00023287,4]
[346001337,1734618661474,-500.0,0.00023287,4]
[346001338,1734618661483,-500.0,0.00023287,4]
[346001339,1734618661493,-500.0,0.00023287,4]
[346001340,1734618661502,-500.0,0.00023287,4]
[346001341,1734618661512,-500.0,0.00023287,4]
[346001342,1734618661522,-500.0,0.00023287,4]
[346001343,1734618661531,-500.0,0.00023287,4]
[346001344,1734618661541,-500.0,0.00023287,4]
[346001345,1734618661551,-534.85005813,0.00023287,4]
[346001346,1734618661560,-551.52,0.00023287,4]
[346001347,1734618661570,-500.0,0.00023287,4]
[346001348,1734618661580,-500.0,0.00023287,4]
[346001349,1734618661590,-500.0,0.00023287,4]
[346001350,1734618661603,-500.0,0.00023287,4]
[346001351,1734618661612,-500.0,0.00023287,4]
[346001352,1734618661622,-224.81,0.00023287,4]
[346001353,1734618661632,-500.0,0.00023287,4]
[346001354,1734618661642,-500.0,0.00023287,4]
[346001355,1734618661652,-500.0,0.00023287,4]
[346001356,1734618661662,-607.87,0.00023287,4]
[346001357,1734618661672,-500.0,0.00023287,4]
[346001358,1734618661681,-500.0,0.00023287,4]
[346001359,1734618661692,-500.0,0.00023287,4]
[346001360,1734618661703,-500.0,0.00023287,4]
[346001361,1734618661714,-500.0,0.00023287,4]
[346001362,1734618661724,-536.54,0.00023287,4]
[346001363,1734618661736,-210.53089509,0.00023287,4]
[346001364,1734618661747,-587.88,0.00023287,4]
[346001365,1734618661758,-500.0,0.00023287,4]
[346001366,1734618661769,-500.0,0.00023287,4]
[346001367,1734618661779,-562.66,0.00023287,4]
[346001368,1734618661790,-562.83,0.00023287,4]
[346001369,1734618661800,-500.0,0.00023287,4]
[346001370,1734618661811,-504.4708049,0.00023287,4]
[346001371,1734618661821,-500.0,0.00023287,4]
[346001372,1734618661832,-500.0,0.00023287,4]
[346001373,1734618661846,-500.0,0.00023287,4]
[346001374,1734618661856,-500.0,0.00023287,4]
[346001375,1734618661866,-500.0,0.00023287,4]
[346001376,1734618661877,-500.0,0.00023287,2]
[346001377,1734618661887,-500.0,0.00023287,4]
[346001378,1734618661898,-500.0,0.00023287,4]
[346001379,1734618661909,-241.55958509,0.00023287,4]
[346001380,1734618661919,-500.0,0.00023287,4]
[346001381,1734618661929,-500.0,0.00023287,4]
[346001382,1734618661939,-500.0,0.00023287,4]
[346001383,1734618661949,-500.0,0.00023287,4]
[346001384,1734618661959,-575.22,0.00023287,4]
[346001385,1734618661969,-689.88,0.00023287,4]
[346001386,1734618661979,-222.69619225,0.00023287,4]
[346001387,1734618661989,-500.0,0.00023287,4]
[346001388,1734618662000,-539.88,0.00023287,4]
[346001389,1734618662011,-984.6,0.00023287,4]
[346001390,1734618662021,-500.0,0.00023287,4]
[346001391,1734618662030,-500.0,0.00023287,4]
[346001392,1734618662040,-512.1,0.00023287,4]
[346001393,1734618662052,-500.0,0.00023287,4]
[346001394,1734618662062,-500.0,0.00023287,4]
[346001395,1734618662071,-500.0,0.00023287,4]
[346001396,1734618662081,-345.62234201,0.00023287,4]
[346001397,1734618662091,-500.0,0.00023287,4]
[346001398,1734618662105,-500.0,0.00023287,2]
[346001399,1734618662115,-500.0,0.00023287,4]
[346001400,1734618662125,-500.0,0.00023287,4]
[346001401,1734618662135,-418.92694237,0.00023287,4]
[346001402,1734618662144,-500.0,0.00023287,4]
[346001403,1734618662153,-500.0,0.00023287,4]
[346001404,1734618662163,-500.0,0.00023287,4]
[346001405,1734618662172,-500.0,0.00023287,4]
[346001406,1734618662181,-500.0,0.00023287,4]
[346001407,1734618662191,-500.0,0.00023287,4]
[346001408,1734618662200,-500.0,0.00023287,4]
[346001409,1734618662210,-500.0,0.00023287,4]
[346001410,1734618662219,-500.0,0.00023287,4]
[346001411,1734618662229,-500.0,0.00023287,4]
[346001412,1734618662238,-500.0,0.00023287,4]
[346001413,1734618662248,-500.0,0.00023287,4]
[346001414,1734618662258,-277.22,0.00023287,4]
[346001415,1734618662268,-500.0,0.00023287,4]
[346001416,1734618662278,-500.0,0.00023287,4]
[346001417,1734618662287,-500.0,0.00023287,4]
[346001418,1734618662297,-500.0,0.00023287,4]
[346001419,1734618662306,-500.0,0.00023287,4]
[346001420,1734618662315,-500.0,0.00023287,4]
[346001421,1734618662325,-500.0,0.00023287,4]
[346001422,1734618662335,-500.0,0.00023287,4]
[346001423,1734618662344,-500.0,0.00023287,4]
[346001424,1734618662355,-500.0,0.00023287,4]
[346001425,1734618662364,-500.0,0.00023287,4]
[346001426,1734618662374,-500.0,0.00023287,4]
[346001427,1734618662383,-672.97,0.00023287,4]
[346001428,1734618662392,-500.0,0.00023287,4]
[346001429,1734618662402,-321.99,0.00023287,4]
[346001430,1734618662412,-508.82,0.00023287,4]
[346001431,1734618662421,-658.64,0.00023287,4]
[346001432,1734618662431,-669.94,0.00023287,4]
[346001433,1734618662439,-500.0,0.00023287,4]
[346001434,1734618662449,-500.0,0.00023287,4]
[346001435,1734618662459,-500.0,0.00023287,4]
[346001436,1734618662468,-500.0,0.00023287,4]
[346001437,1734618662477,-245.9,0.00023287,4]
[346001438,1734618662486,-500.0,0.00023287,4]
[346001439,1734618662495,-500.0,0.00023287,4]
[346001440,1734618662505,-1051.1,0.00023287,4]
[346001441,1734618662515,-500.0,0.00023287,4]
[346001442,1734618662524,-500.0,0.00023287,4]
[346001443,1734618662534,-643.56,0.00023287,4]
[346001444,1734618662543,-500.0,0.00023287,4]
[346001445,1734618662552,-500.0,0.00023287,4]
[346001446,1734618662562,-500.0,0.00023287,4]
[346001447,1734618662571,-500.0,0.00023287,4]
[346001448,1734618662580,-500.0,0.00023287,4]
[346001449,1734618662589,-500.0,0.00023287,4]
[346001450,1734618662599,-500.0,0.00023287,4]
[346001451,1734618662608,-500.0,0.00023287,4]
[346001452,1734618662617,-500.0,0.00023287,4]
[346001453,1734618662627,-500.0,0.00023287,4]
[346001454,1734618662637,-500.0,0.00023287,4]
[346001455,1734618662646,-500.0,0.00023287,4]
[346001456,1734618662655,-539.96,0.00023287,4]
[346001457,1734618662664,-500.0,0.00023287,4]
[346001458,1734618662673,-545.38,0.00023287,4]
[346001459,1734618662682,-500.0,0.00023287,4]
[346001460,1734618662691,-500.0,0.00023287,4]
[346001461,1734618662700,-500.0,0.00023287,4]
[346001462,1734618662710,-500.0,0.00023287,4]
[346001463,1734618662719,-515.23,0.00023287,4]
[346001464,1734618662727,-500.0,0.00023287,4]
[346001465,1734618662737,-500.0,0.00023287,4]
[346001466,1734618662747,-581.44,0.00023287,4]
[346001467,1734618662756,-500.0,0.00023287,4]
[346001468,1734618662765,-220.22275148,0.00023287,4]
[346001469,1734618662775,-500.0,0.00023287,4]
[346001470,1734618662784,-500.0,0.00023287,4]
[346001471,1734618662793,-500.0,0.00023287,4]
[346001472,1734618662802,-500.0,0.00023287,4]
[346001473,1734618662812,-809.96,0.00023287,4]
[346001474,1734618662822,-982.21,0.00023287,4]
[346001475,1734618662831,-500.0,0.00023287,4]
[346001476,1734618662840,-1225.91,0.00023287,4]
[346001477,1734618662853,-546.89,0.00023287,4]
[346001478,1734618662862,-500.0,0.00023287,4]
[346001479,1734618662872,-1862.27,0.00023287,4]
[346001480,1734618662882,-500.0,0.00023287,4]
[346001481,1734618662891,-500.0,0.00023287,4]
[346001482,1734618662900,-664.87,0.00023287,4]
[346001483,1734618662910,-500.0,0.00023287,4]
[346001484,1734618662920,-1636.6,0.00023287,4]
[346001485,1734618662930,-500.0,0.00023287,4]
[346001486,1734618662940,-500.0,0.00023287,4]
[346001487,1734618662949,-1061.47,0.00023287,4]
[346001488,1734618662959,-500.0,0.00023287,4]
[346001489,1734618662969,-3443.32,0.00023287,4]
[346001490,1734618662978,-500.0,0.00023287,4]
[346001491,1734618662987,-500.0,0.00023287,4]
[346001492,1734618662997,-500.0,0.00023287,4]
[346001493,1734618663006,-176.82193626,0.00023287,4]
[346001494,1734618663018,-577.23,0.00023287,4]
[346001495,1734618663029,-510.18,0.00023287,4]
[346001496,1734618663038,-500.0,0.00023287,4]
[346001497,1734618663049,-500.0,0.00023287,4]
[346001498,1734618663059,-500.0,0.00023287,4]
[346001499,1734618663071,-561.94,0.00023287,4]
[346001500,1734618663081,-500.0,0.00023287,4]
[346001501,1734618663091,-500.0,0.00023287,4]
[346001502,1734618663106,-1000.92,0.00023287,4]
[346001503,1734618663119,-1011.42,0.00023287,4]
[346001504,1734618663130,-529.52355828,0.00023287,4]
[346001505,1734618663140,-1160.85,0.00023287,4]
[346001506,1734618663151,-889.04,0.00023287,4]
[346001507,1734618663161,-500.0,0.00023287,4]
[346001508,1734618663171,-513.5,0.00023287,4]
[346001509,1734618663181,-1470.92,0.00023287,4]
[346001510,1734618663191,-1902.12,0.00023287,4]
[346001511,1734618663201,-1529.62,0.00023287,4]
[346001512,1734618663210,-500.0,0.00023287,4]
[346001513,1734618663220,-500.0,0.00023287,4]
[346001514,1734618663230,-321.28500252,0.00023287,4]
[346001515,1734618663239,-500.0,0.00023287,4]
[346001516,1734618663250,-1078.29,0.00023287,4]
[346001517,1734618663259,-500.0,0.00023287,4]
[346001518,1734618663269,-545.41,0.00023287,4]
[346001519,1734618663279,-500.0,0.00023287,4]
[346001520,1734618663288,-1136.86,0.00023287,4]
[346001521,1734618663298,-1932.48,0.00023287,4]
[346001522,1734618663308,-743.49,0.00023287,4]
[346001523,1734618663318,-743.12,0.00023287,4]
[346001524,1734618663328,-553.43,0.00023287,4]
[346001525,1734618663337,-527.87,0.00023287,4]
[346001526,1734618663349,-5190.88,0.00023287,4]
[346001527,1734618663359,-500.0,0.00023287,4]
[346001528,1734618663369,-500.0,0.00023287,4]
[346001529,1734618663379,-500.0,0.00023287,4]
[346001530,1734618663388,-966.08,0.00023287,4]
[346001531,1734618663398,-500.0,0.00023287,4]
[346001532,1734618663408,-500.0,0.00023287,4]
[346001533,1734618663418,-803.62,0.00023287,4]
[346001534,1734618663427,-598.14,0.00023287,4]
[346001535,1734618663438,-716.0,0.00023287,4]
[346001536,1734618663448,-500.0,0.00023287,4]
[346001537,1734618663458,-947.99,0.00023287,4]
[346001538,1734618663467,-501.8,0.00023287,4]
[346001539,1734618663478,-866.06,0.00023287,4]
[346001540,1734618663488,-3302.89,0.00023287,4]
[346001541,1734618663497,-500.0,0.00023287,4]
[346001542,1734618663507,-500.0,0.00023287,4]
[346001543,1734618663516,-500.0,0.00023287,4]
[346001544,1734618663526,-1228.92,0.00023287,4]
[346001545,1734618663536,-601.24,0.00023287,4]
[346001546,1734618663546,-1679.88,0.00023287,4]
[346001547,1734618663556,-550.22,0.00023287,4]
[346001548,1734618663566,-500.0,0.00023287,4]
[346001549,1734618663576,-500.0,0.00023287,4]
[346001550,1734618663585,-500.0,0.00023287,4]
[346001551,1734618663594,-500.0,0.00023287,4]
[346001552,1734618663607,-500.0,0.00023287,4]
[346001553,1734618663616,-500.0,0.00023287,4]
[346001554,1734618663626,-500.0,0.00023287,4]
[346001555,1734618663636,-500.0,0.00023287,4]
[346001556,1734618663646,-843.25,0.00023287,4]
[346001557,1734618663655,-1465.52,0.00023287,4]
[346001558,1734618663664,-541.01,0.00023287,4]
[346001559,1734618663674,-780.36,0.00023287,4]
[346001560,1734618663683,-500.0,0.00023287,4]
[346001561,1734618663692,-1897.2,0.00023287,4]
[346001562,1734618663702,-500.0,0.00023287,4]
[346001563,1734618663711,-500.0,0.00023287,4]
[346001564,1734618663721,-759.37,0.00023287,4]
[346001565,1734618663730,-76.36223533,0.00023287,4]
[346001566,1734618664529,-500.0,0.00021917,4]
[346001567,1734618664539,-500.0,0.00021917,4]
[346001568,1734618664548,-12.06254871,0.00021917,4]
[346001569,1734618664582,-288.9699825,0.00021917,4]
[346001570,1734618664598,-444.41746879,0.00021917,4]
[346001571,1734618664607,-500.0,0.00021917,4]
[346001572,1734618664617,-78.58253121,0.00022191,4]
[346001573,1734618664632,-666.86746879,0.00022191,4]
[346001574,1734618664641,-500.0,0.00022191,4]
[346001575,1734618664650,-1817.32341073,0.00022332,2]
[346001576,1734618664662,-1946.67658927,0.00022332,2]
[346001577,1734618664671,-745.45,0.00022465,4]
[346001578,1734618664681,-500.0,0.00022465,4]
[346001579,1734618664691,-241.48180877,0.00022739,3]
[346001580,1734618664701,-500.0,0.00022739,4]
[346001581,1734618664711,-745.45,0.00022739,4]
[346001582,1734618664721,-500.0,0.00022739,4]
[346001583,1734618664731,-500.0,0.00023013,4]
[346001584,1734618664740,-745.45,0.00023013,4]
[346001585,1734618664750,-500.0,0.00023013,4]
[346001586,1734618664759,-923.63776467,0.00023287,4]
[346001587,1734618664769,-636.48,0.00023287,4]
[346001588,1734618664778,-1363.14,0.00023287,4]
[346001589,1734618664788,-500.0,0.00023287,4]
[346001590,1734618664797,-2028.95,0.00023287,4]
[346001591,1734618664807,-835.94,0.00023287,4]
[346001592,1734618664817,-500.0,0.00023287,4]
[346001593,1734618664827,-500.0,0.00023287,4]
[346001594,1734618664836,-500.0,0.00023287,4]
[346001595,1734618664845,-1527.78,0.00023287,4]
[346001596,1734618664855,-506.43824233,0.00023287,4]
[346001597,1734618664864,-2242.39,0.00023287,4]
[346001598,1734618664874,-500.0,0.00023287,4]
[346001599,1734618664883,-500.0,0.00023287,4]
[346001600,1734618664893,-364.56337689,0.00023287,4]
[346001601,1734618664902,-1000.0,0.00023287,2]
[346001602,1734618664911,-1423.1,0.00023287,4]
[346001603,1734618664921,-688.8,0.00023287,4]
[346001604,1734618664931,-1839.25,0.00023287,4]
[346001605,1734618664940,-304.09144567,0.00023287,4]
[346001606,1734618664950,-500.0,0.00023287,4]
[346001607,1734618664960,-212.32,0.00023287,4]
[346001608,1734618664969,-660.21,0.00023287,4]
[346001609,1734618664978,-537.53,0.00023287,4]
[346001610,1734618664988,-774.82,0.00023287,4]
[346001611,1734618664997,-500.0,0.00023287,4]
[346001612,1734618665006,-500.0,0.00023287,4]
[346001613,1734618665016,-500.0,0.00023287,4]
[346001614,1734618665026,-500.0,0.00023287,4]
[346001615,1734618665036,-437.0394491,0.00023287,4]
[346001616,1734618665052,-3182.1005509,0.00023287,4]
[346001617,1734618665061,-228.21987666,0.00023287,4]
[346001618,1734618665076,-271.78012334,0.00023287,4]
[346001619,1734618665085,-653.82168091,0.00023287,4]
[346001620,1734618665098,-1623.56831909,0.00023287,4]
[346001621,1734618665109,-323.87168091,0.00023287,4]
[346001622,1734618665156,-278.51,0.00021917,4]
[346001623,1734618665166,-500.0,0.00021917,4]
[346001624,1734618665175,-144.5825,0.00022181,2]
[346001625,1734618665187,-28.6404251,0.00022181,2]
[346001626,1734618665196,-312.95831909,0.00023287,4]
[346001627,1734618665206,-590.84,0.00023287,4]
[346001628,1734618665216,-205.5959016,0.00023287,4]
[346001629,1734618665227,-1300.6640984,0.00023287,4]
[346001630,1734618665237,-500.0,0.00023287,4]
[346001631,1734618665247,-500.0,0.00023287,4]
[346001632,1734618665257,-500.0,0.00023287,4]
[346001633,1734618665267,-1450.17,0.00023287,4]
[346001634,1734618665276,-500.0,0.00023287,4]
[346001635,1734618665286,-500.0,0.00023287,4]
[346001636,1734618665295,-1431.46,0.00023287,4]
[346001637,1734618665305,-622.14,0.00023287,4]
[346001638,1734618665314,-615.79,0.00023287,4]
[346001639,1734618665324,-1118.32,0.00023287,4]
[346001640,1734618665335,-500.0,0.00023287,4]
[346001641,1734618665344,-1942.08,0.00023287,4]
[346001642,1734618665355,-640.79,0.00023287,4]
[346001643,1734618665365,-500.0,0.00023287,4]
[346001644,1734618665374,-617.09,0.00023287,4]
[346001645,1734618665383,-500.0,0.00023287,4]
[346001646,1734618665393,-500.0,0.00023287,4]
[346001647,1734618665402,-500.0,0.00023287,4]
[346001648,1734618665411,-3701.41,0.00023287,4]
[346001649,1734618665420,-500.0,0.00023287,2]
[346001650,1734618665430,-581.02,0.00023287,4]
[346001651,1734618665440,-500.0,0.00023287,4]
[346001652,1734618665450,-590.95,0.00023287,4]
[346001653,1734618665460,-500.0,0.00023287,4]
[346001654,1734618665469,-500.0,0.00023287,4]
[346001655,1734618665478,-500.0,0.00023287,4]
[346001656,1734618665488,-742.39,0.00023287,4]
[346001657,1734618665497,-500.0,0.00023287,4]
[346001658,1734618665506,-500.0,0.00023287,4]
[346001659,1734618665515,-500.0,0.00023287,4]
[346001660,1734618665524,-873.82,0.00023287,4]
[346001661,1734618665534,-500.56,0.00023287,4]
[346001662,1734618665543,-306.27894653,0.00023287,4]
[346001663,1734618665552,-500.0,0.00023287,4]
[346001664,1734618665562,-500.0,0.00023287,4]
[346001665,1734618665571,-500.0,0.00023287,4]
[346001666,1734618665580,-1548.53,0.00023287,4]
[346001667,1734618665589,-500.0,0.00023287,4]
[346001668,1734618665600,-727.98,0.00023287,4]
[346001669,1734618665609,-500.0,0.00023287,4]
[346001670,1734618665618,-500.0,0.00023287,4]
[346001671,1734618665627,-500.0,0.00023287,4]
[346001672,1734618665636,-500.0,0.00023287,4]
[346001673,1734618665646,-885.56,0.00023287,4]
[346001674,1734618665655,-1819.6,0.00023287,4]
[346001675,1734618665664,-500.0,0.00023287,4]
[346001676,1734618665674,-990.87,0.00023287,4]
[346001677,1734618665683,-225.71,0.00023287,4]
[346001678,1734618665693,-745.45,0.00023287,4]
[346001679,1734618665702,-500.0,0.00023287,4]
[346001680,1734618665712,-162.55681607,0.00023288,2]
[346001681,1734618665722,-150.73032653,0.00023288,2]
[346001682,1734618665732,-295.83578,0.00023288,7]
[346001683,1734618665741,-726.13,0.0002333,2]
[346001684,1734618665750,-150.0,0.00023341,4]
[346001685,1734618665760,-600.0,0.00023356,2]
[346001686,1734618665769,-500.0,0.00023356,2]
[346001687,1734618665778,-150.0,0.00023363,4]
[346001688,1734618665787,-200.0,0.00023368,2]
[346001689,1734618665797,-150.0,0.00023384,2]
[346001690,1734618665806,-150.0,0.00023413,4]
[346001691,1734618665815,-150.73032653,0.00023425,2]
[346001692,1734618665824,-150.0,0.00023432,2]
[346001693,1734618665833,-1000.0,0.00023464,2]
[346001694,1734618665842,-150.0,0.00023485,4]
[346001695,1734618665852,-295.83578,0.00023488,7]
[346001696,1734618665862,-199.63,0.0002349,2]
[346001697,1734618665871,-150.0,0.00023494,2]
[346001698,1734618665880,-152.37927094,0.00023496,2]
[346001699,1734618665889,-150.0,0.00023551,4]
[346001700,1734618665899,-150.0,0.00023557,4]
[346001701,1734618665908,-226.694226,0.00023561,4]
[346001702,1734618665917,-481.675102,0.00023561,4]
[346001703,1734618665927,-559.81480603,0.00023561,4]
[346001704,1734618665936,-506.10281028,0.00023561,4]
[346001705,1734618665946,-500.0,0.00023561,4]
[346001706,1734618665955,-500.0,0.00023561,4]
[346001707,1734618665964,-500.0,0.00023561,4]
[346001708,1734618665973,-500.0,0.00023561,4]
[346001709,1734618665983,-500.0,0.00023561,4]
[346001710,1734618665992,-500.0,0.00023561,4]
[346001711,1734618666001,-375.60564934,0.00023561,4]
[346001712,1734618666010,-500.0,0.00023561,4]
[346001713,1734618666020,-500.0,0.00023561,4]
[346001714,1734618666028,-361.91317513,0.00023561,4]
[346001715,1734618666038,-500.0,0.00023561,4]
[346001716,1734618666047,-500.0,0.00023561,4]
[346001717,1734618666059,-500.0,0.00023561,4]
[346001718,1734618666070,-500.0,0.00023561,4]
[346001719,1734618666079,-500.0,0.00023561,4]
[346001720,1734618666089,-500.0,0.00023561,4]
[346001721,1734618666102,-500.0,0.00023561,4]
[346001722,1734618666112,-500.0,0.00023561,4]
[346001723,1734618666122,-500.0,0.00023561,4]
[346001724,1734618666131,-296.29241464,0.00023561,4]
[346001725,1734618666143,-500.0,0.00023561,4]
[346001726,1734618666152,-500.0,0.00023561,4]
[346001727,1734618666162,-500.0,0.00023561,4]
[346001728,1734618666171,-500.0,0.00023561,4]
[346001729,1734618666181,-500.0,0.00023561,4]
[346001730,1734618666190,-500.0,0.00023561,4]
[346001731,1734618666200,-500.0,0.00023561,4]
[346001732,1734618666209,-292.65855845,0.00023561,4]
[346001733,1734618666219,-500.0,0.00023561,4]
[346001734,1734618666228,-500.0,0.00023561,4]
[346001735,1734618666237,-500.0,0.00023561,4]
[346001736,1734618666247,-500.0,0.00023561,4]
[346001737,1734618666255,-421.01096685,0.00023561,4]
[346001738,1734618666265,-500.0,0.00023561,4]
[346001739,1734618666274,-500.0,0.00023561,4]
[346001740,1734618666283,-500.0,0.00023561,4]
[346001741,1734618666293,-464.23447443,0.00023561,4]
[346001742,1734618666302,-551.52,0.00023561,4]
[346001743,1734618666311,-500.0,0.00023561,4]
[346001744,1734618666320,-500.0,0.00023561,4]
[346001745,1734618666334,-500.0,0.00023561,4]
[346001746,1734618666344,-500.0,0.00023561,4]
[346001747,1734618666356,-538.80945297,0.00023561,4]
[346001748,1734618666366,-500.0,0.00023561,4]
[346001749,1734618666376,-565.2585449,0.00023561,4]
[346001750,1734618666385,-607.87,0.00023561,4]
[346001751,1734618666395,-500.0,0.00023561,4]
[346001752,1734618666404,-500.0,0.00023561,4]
[346001753,1734618666413,-500.0,0.00023561,4]
[346001754,1734618666423,-500.0,0.00023561,4]
[346001755,1734618666432,-500.0,0.00023561,4]
[346001756,1734618666441,-536.54,0.00023561,4]
[346001757,1734618666451,-587.88,0.00023561,4]
[346001758,1734618666460,-500.0,0.00023561,4]
[346001759,1734618666470,-500.0,0.00023561,4]
[346001760,1734618666479,-562.66,0.00023561,4]
[346001761,1734618666488,-562.83,0.00023561,4]
[346001762,1734618666498,-500.0,0.00023561,4]
[346001763,1734618666507,-500.0,0.00023561,4]
[346001764,1734618666517,-500.0,0.00023561,4]
[346001765,1734618666526,-500.0,0.00023561,4]
[346001766,1734618666535,-500.0,0.00023561,4]
[346001767,1734618666545,-500.0,0.00023561,4]
[346001768,1734618666555,-558.8727771,0.00023561,2]
[346001769,1734618666564,-500.0,0.00023561,4]
[346001770,1734618666575,-500.0,0.00023561,4]
[346001771,1734618666585,-500.0,0.00023561,4]
[346001772,1734618666594,-500.0,0.00023561,4]
[346001773,1734618666605,-500.0,0.00023561,4]
[346001774,1734618666615,-500.0,0.00023561,4]
[346001775,1734618666624,-575.22,0.00023561,4]
[346001776,1734618666634,-689.88,0.00023561,4]
[346001777,1734618666643,-500.0,0.00023561,4]
[346001778,1734618666653,-539.88,0.00023561,4]
[346001779,1734618666663,-984.6,0.00023561,4]
[346001780,1734618666673,-500.0,0.00023561,4]
[346001781,1734618666683,-634.82,0.00023561,4]
[346001782,1734618666692,-512.1,0.00023561,4]
[346001783,1734618666702,-527.81700416,0.00023561,4]
[346001784,1734618666711,-500.0,0.00023561,4]
[346001785,1734618666721,-500.0,0.00023561,4]
[346001786,1734618666730,-500.0,0.00023561,4]
[346001787,1734618666739,-500.0,0.00023561,2]
[346001788,1734618666749,-500.0,0.00023561,4]
[346001789,1734618666758,-500.0,0.00023561,4]
[346001790,1734618666926,-500.0,0.00023561,4]
[346001791,1734618666936,-627.4815356,0.00023561,4]
[346001792,1734618666946,-500.0,0.00023561,4]
[346001793,1734618666955,-500.0,0.00023561,4]
[346001794,1734618666964,-500.0,0.00023561,4]
[346001795,1734618666973,-500.0,0.00023561,4]
[346001796,1734618666983,-500.0,0.00023561,4]
[346001797,1734618666992,-500.0,0.00023561,4]
[346001798,1734618667001,-500.0,0.00023561,4]
[346001799,1734618667011,-500.0,0.00023561,4]
[346001800,1734618667020,-500.0,0.00023561,4]
[346001801,1734618667031,-500.0,0.00023561,4]
[346001802,1734618667041,-500.0,0.00023561,4]
[346001803,1734618667052,-500.0,0.00023561,4]
[346001804,1734618667062,-500.0,0.00023561,4]
[346001805,1734618667074,-500.0,0.00023561,4]
[346001806,1734618667085,-500.0,0.00023561,4]
[346001807,1734618667095,-500.0,0.00023561,4]
[346001808,1734618667107,-500.0,0.00023561,4]
[346001809,1734618667117,-500.0,0.00023561,4]
[346001810,1734618667126,-500.0,0.00023561,4]
[346001811,1734618667136,-500.0,0.00023561,4]